bitfinex/quotes_SOLUSD_20241210
["timestamp","ask_amount","ask_price","bid_price","bid_amount"]
[1733834171226,0.12549,213.48,213.38,23.1454569]
[1733834171535,0.12549,213.48,213.3,10.0]
[1733834171536,0.12549,213.48,213.35,23.1454569]
[1733834171710,23.902374,213.46,213.33,23.1454569]
[1733834171910,0.25098,213.42,213.32,23.1454569]
[1733834172128,0.25098,213.42,213.31,23.1454569]
[1733834172322,24.027864,213.42,213.31,23.1454569]
[1733834172511,24.027864,213.42,213.3,23.1454569]
[1733834173025,24.027864,213.42,213.32,23.1454569]
[1733834173026,20.25098,213.42,213.32,23.1454569]
[1733834173225,20.25098,213.42,213.31,23.1454569]
[1733834173534,20.25098,213.42,213.3,23.1454569]
[1733834173710,0.12549,213.42,213.3,23.1454569]
[1733834174114,0.12549,213.4,213.31,23.1454569]
[1733834174810,0.25098,213.4,213.31,23.1454569]
[1733834175010,0.25098,213.4,213.07,23.1454569]
[1733834175011,0.25098,213.38,213.23,20.0]
[1733834175336,0.25098,213.31,213.18,0.5569663]
[1733834175522,0.25098,213.27,213.18,0.5569663]
[1733834175724,0.12549,213.27,213.18,23.7024232]
[1733834176133,24.027864,213.31,213.18,23.7024232]
[1733834176332,0.12549,213.27,213.18,0.5569663]
[1733834176511,20.0,213.24,213.18,0.5569663]
[1733834177111,20.0,213.24,213.18,23.7024232]
[1733834177425,20.0,213.31,213.23,37.76488582]
[1733834177735,2.84151341,213.33,213.26,37.76488582]
[1733834177933,2.84151341,213.33,213.24,37.76488582]
[1733834178138,2.84151341,213.33,213.18,38.32185212]
[1733834178139,2.84151341,213.33,213.2,37.76488582]
[1733834178317,0.12549,213.32,213.22,37.76488582]
[1733834178505,2.84151341,213.33,213.24,37.76488582]
[1733834178911,2.84151341,213.33,213.2,0.70344688]
[1733834178912,2.84151341,213.33,213.23,37.76488582]
[1733834179144,2.84151341,213.33,213.22,37.76488582]
[1733834179321,0.12549,213.32,213.22,37.76488582]
[1733834179639,2.84151341,213.33,213.22,37.76488582]
[1733834179846,23.776884,213.38,213.25,37.76488582]
[1733834180024,23.776884,213.38,213.23,0.70325677]
[1733834180025,6.4767,213.39,213.26,37.76488582]
[1733834180231,2.81287917,213.33,213.25,37.76488582]
[1733834180816,2.81287917,213.33,213.19,0.70316401]
[1733834181037,2.81287917,213.33,213.25,37.76488582]
[1733834181236,2.81287917,213.33,213.21,37.76488582]
[1733834181518,0.25098,213.32,213.18,0.5569663]
[1733834181741,0.25098,213.32,213.2,37.76488582]
[1733834182115,0.25098,213.32,213.18,0.5569663]
[1733834182318,0.12549,213.28,213.18,0.5569663]
[1733834182620,0.25098,213.24,213.18,0.5569663]
[1733834182813,26.2425,213.25,213.18,0.5569663]
[1733834183044,20.0,213.29,213.23,37.76488582]
[1733834183255,6.2425,213.32,213.21,37.76488582]
[1733834183486,6.2425,213.32,213.18,0.5569663]
[1733834183487,0.12549,213.31,213.18,0.5569663]
[1733834183750,0.12549,213.28,213.18,0.4315663]
[1733834183933,12.81287917,213.33,212.97,37.76488582]
[1733834183934,20.0,213.21,212.97,37.76488582]
[1733834184132,10.0,213.21,212.99,37.76488582]
[1733834184331,23.776884,213.18,213.02,37.76488582]
[1733834184651,0.12549,213.1,212.97,37.76488582]
[1733834184855,20.0,213.11,213.0,37.76488582]
[1733834185151,20.0,213.11,213.03,37.76488582]
[1733834185359,0.12549,213.13,212.97,0.70391595]
[1733834185521,20.0,213.1,212.99,37.76488582]
[1733834185723,20.0,213.14,213.01,37.76488582]
[1733834185926,20.0,213.14,213.02,37.76488582]
[1733834186344,0.12549,213.13,213.0,37.76488582]
[1733834186539,0.12549,213.13,213.01,37.76488582]
[1733834186732,0.12549,213.13,213.0,37.76488582]
[1733834187280,20.0,213.14,213.02,37.76488582]
[1733834187449,20.0,213.14,213.05,37.76488582]
[1733834188085,0.12549,213.13,213.01,37.76488582]
[1733834188377,0.12549,213.13,213.0,37.76488582]
[1733834188564,20.0,213.14,213.02,37.76488582]
[1733834189050,0.12549,213.13,213.0,37.76488582]
[1733834189452,0.12549,213.13,212.99,37.76488582]
[1733834189667,0.25098,213.13,212.97,37.76488582]
[1733834189847,20.0,213.1,212.97,37.76488582]
[1733834190253,0.12549,213.09,212.96,38.32185212]
[1733834190993,20.0,213.14,213.0,37.76488582]
[1733834191157,20.0,213.14,213.03,37.76488582]
[1733834191487,20.0,213.14,213.0,37.76488582]
[1733834191657,0.12549,213.13,213.0,37.76488582]
[1733834191854,0.12549,213.13,213.01,38.4688343]
[1733834192574,0.12549,213.13,213.02,37.76488582]
[1733834192765,20.0,213.14,213.02,37.76488582]
[1733834192965,6.2425,213.17,213.03,0.70392614]
[1733834193156,6.2425,213.17,213.04,37.76488582]
[1733834193361,6.2425,213.17,213.01,37.76488582]
[1733834193660,6.2425,213.17,212.99,37.76488582]
[1733834194083,0.12549,213.16,212.99,312.0]
[1733834194290,0.12549,213.13,212.98,37.76488582]
[1733834194586,6.2425,213.17,213.02,37.76488582]
[1733834194751,6.2425,213.17,213.06,37.76488582]
[1733834194954,6.2425,213.17,213.05,37.76488582]
[1733834195155,6.2425,213.17,213.03,38.46871682]
[1733834195972,20.0,213.14,213.03,38.46871682]
[1733834196170,2.83705097,213.22,213.03,0.703831]
[1733834196364,2.83705097,213.22,213.09,37.76488582]
[1733834196558,2.83705097,213.22,213.08,37.76488582]
[1733834196777,2.83705097,213.22,213.07,37.76488582]
[1733834196964,0.12549,213.21,213.07,37.76488582]
[1733834197165,2.83705097,213.22,213.09,37.76488582]
[1733834197474,2.83705097,213.22,213.07,37.76488582]
[1733834197786,0.25098,213.21,213.05,39.34218582]
[1733834197957,0.25098,213.21,213.03,37.76488582]
[1733834198157,0.25098,213.21,213.0,37.76488582]
[1733834198388,5.62191912,213.21,213.0,37.76488582]
[1733834198574,0.25098,213.19,213.0,37.76488582]
[1733834198779,20.25098,213.16,213.0,37.76488582]
[1733834198971,0.25098,213.16,213.0,37.76488582]
[1733834199161,0.25098,213.16,212.99,2.28130589]
[1733834199369,0.25098,213.16,212.99,1.5773]
[1733834199876,5.37093912,213.2,213.04,23.2830053]
[1733834200094,2.83705097,213.22,213.07,23.2830053]
[1733834200298,2.83705097,213.22,213.05,23.2830053]
[1733834200793,0.12549,213.21,213.03,23.2830053]
[1733834200959,2.83705097,213.22,213.06,23.2830053]
[1733834201156,2.83705097,213.22,213.05,23.2830053]
[1733834201592,2.83705097,213.22,213.0,0.70379587]
[1733834201593,20.0,213.2,213.03,23.2830053]
[1733834201779,20.0,213.2,213.04,23.98676808]
[1733834201978,0.12549,213.19,213.03,23.2830053]
[1733834202181,0.25098,213.19,213.02,23.2830053]
[1733834202503,0.25098,213.19,212.99,1.5773]
[1733834202504,20.25098,213.19,212.99,1.5773]
[1733834202663,0.12549,213.16,212.99,1.5773]
[1733834202866,0.25098,213.12,212.97,23.2830053]
[1733834203077,0.25098,213.12,212.98,23.2830053]
[1733834204094,20.0,213.16,213.03,23.2830053]
[1733834204391,5.37093912,213.19,213.0,23.2830053]
[1733834204392,0.12549,213.18,213.0,23.2830053]
[1733834204691,0.12549,213.18,213.01,0.70395276]
[1733834204901,0.25098,213.19,213.01,0.70395276]
[1733834205072,0.25098,213.19,213.0,23.2830053]
[1733834205073,0.25098,213.17,213.0,23.2830053]
[1733834205391,0.25098,213.17,213.02,23.2830053]
[1733834206100,24.027864,213.19,213.02,23.2830053]
[1733834206398,0.25098,213.15,213.0,23.2830053]
[1733834207205,0.12549,213.1,212.98,23.2830053]
[1733834207497,2.85014588,213.11,213.01,23.2830053]
[1733834207498,20.0,213.08,213.01,23.2830053]
[1733834208179,20.0,213.08,213.0,23.2830053]
[1733834208505,20.0,213.08,213.01,23.2830053]
[1733834208867,20.0,213.08,213.0,23.2830053]
[1733834209063,20.0,213.08,212.99,23.2830053]
[1733834209294,20.0,213.08,212.97,23.2830053]
[1733834209663,0.12549,213.07,212.96,0.5569663]
[1733834209870,0.12549,213.07,212.96,23.8399716]
[1733834210075,20.0,213.08,212.98,23.2830053]
[1733834210271,20.0,213.08,212.96,0.5569663]
[1733834210272,20.0,213.08,212.99,23.2830053]
[1733834210495,20.0,213.08,213.02,23.2830053]
[1733834210690,6.3199,213.11,213.03,23.2830053]
[1733834210895,6.3199,213.11,213.04,23.2830053]
[1733834211107,6.3199,213.11,213.03,23.2830053]
[1733834211483,6.3199,213.11,213.0,23.2830053]
[1733834212112,6.3199,213.11,212.97,23.2830053]
[1733834212113,20.0,213.08,212.97,23.2830053]
[1733834212606,0.12549,213.07,212.96,23.8399716]
[1733834212808,0.12549,213.07,212.96,0.5569663]
[1733834212985,0.25098,213.07,212.96,0.5569663]
[1733834214510,20.25098,213.07,212.96,0.5569663]
[1733834214803,0.25098,213.07,212.96,0.5569663]
[1733834215394,24.027864,213.07,212.96,0.5569663]
[1733834215605,20.0,213.04,212.96,0.5569663]
[1733834215906,20.0,213.04,212.96,23.8399716]
[1733834216280,20.0,213.08,212.96,0.5569663]
[1733834217313,0.25098,213.07,212.96,0.5569663]
[1733834217510,20.25098,213.07,212.96,0.5569663]
[1733834217680,20.0,213.06,212.96,0.5569663]
[1733834217881,24.07,213.09,212.96,0.5569663]
[1733834217882,0.25098,213.01,212.96,0.5569663]
[1733834218098,20.0,213.02,212.96,0.5569663]
[1733834218306,20.0,213.03,212.96,0.5569663]
[1733834218523,0.12549,213.02,212.96,0.5569663]
[1733834218711,0.25098,213.07,212.96,0.5569663]
[1733834218882,0.25098,213.07,212.96,23.8399716]
[1733834219086,20.0,213.08,212.96,23.8399716]
[1733834219594,14.5523518,213.11,212.96,23.8399716]
[1733834219909,0.12549,213.1,212.96,0.5569663]
[1733834220291,0.25098,213.1,212.96,0.5569663]
[1733834220883,48.097864,213.1,212.96,0.5569663]
[1733834221405,0.12549,213.04,212.96,0.5569663]
[1733834221611,0.25098,213.04,212.96,0.5569663]
[1733834222408,0.25098,212.99,212.96,0.5569663]
[1733834222804,0.25098,212.97,212.96,0.5569663]
[1733834223519,0.12549,212.97,212.96,0.5569663]
[1733834223697,2.3943223,212.99,212.96,0.5569663]
[1733834223905,0.12549,212.99,212.96,0.5569663]
[1733834224280,20.0,213.0,212.96,0.5569663]
[1733834224474,2.8377622,212.98,212.96,0.5569663]
[1733834224928,0.12549,212.97,212.96,0.5569663]
[1733834225742,0.25098,212.97,212.96,0.5569663]
[1733834226037,20.0,213.0,212.96,0.5569663]
[1733834226215,2.79968847,212.99,212.96,0.5569663]
[1733834226616,9.90781384,213.04,212.96,0.5569663]
[1733834226842,9.90781384,213.04,212.97,23.2830053]
[1733834227133,9.90781384,213.04,212.96,0.5569663]
[1733834227134,9.90781384,213.04,212.98,23.2830053]
[1733834227310,9.90781384,213.04,212.99,23.2830053]
[1733834227511,9.90781384,213.04,213.03,23.2830053]
[1733834227935,9.90781384,213.04,212.99,31.0265053]
[1733834228139,9.90781384,213.04,212.99,1.6631]
[1733834228314,9.90781384,213.04,212.96,23.8399716]
[1733834228842,9.90781384,213.04,212.98,23.2830053]
[1733834229148,9.90781384,213.04,212.97,23.2830053]
[1733834229314,9.90781384,213.04,212.96,0.5569663]
[1733834229735,9.90781384,213.04,212.96,23.8399716]
[1733834230034,9.90781384,213.04,212.96,0.5569663]
[1733834230453,9.90781384,213.04,212.99,23.2830053]
[1733834230646,9.90781384,213.04,212.97,23.2830053]
[1733834230950,9.90781384,213.04,212.96,0.5569663]
[1733834231534,0.12549,213.03,212.96,0.5569663]
[1733834231743,9.90781384,213.04,212.96,0.5569663]
[1733834231922,9.90781384,213.04,212.99,23.2830053]
[1733834232122,9.90781384,213.04,212.97,23.2830053]
[1733834232331,9.90781384,213.04,212.98,23.2830053]
[1733834232747,9.90781384,213.04,213.01,23.2830053]
[1733834232955,9.90781384,213.04,213.03,23.2830053]
[1733834234328,9.90781384,213.04,213.03,23.98682008]
[1733834234549,9.90781384,213.04,213.03,23.2830053]
[1733834235259,6.243,213.2,213.03,25.51694777]
[1733834235549,0.85485212,213.19,213.11,23.2830053]
[1733834235753,0.85485212,213.19,213.12,23.2830053]
[1733834235937,0.85485212,213.19,213.14,23.2830053]
[1733834236134,0.85485212,213.19,213.11,23.2830053]
[1733834236438,0.85485212,213.19,213.12,23.98666425]
[1733834236751,0.85485212,213.19,213.11,23.2830053]
[1733834236961,0.85485212,213.19,213.08,23.2830053]
[1733834237246,0.12549,213.18,213.01,23.2830053]
[1733834237452,20.0,213.15,212.98,23.2830053]
[1733834237641,0.12549,213.09,212.96,0.5569663]
[1733834238016,20.0,213.04,212.96,0.5569663]
[1733834238222,0.25098,213.03,212.96,0.5569663]
[1733834238625,0.12549,213.03,212.96,0.5569663]
[1733834238833,0.12549,213.04,212.96,0.5569663]
[1733834239030,0.25098,213.0,212.96,0.5569663]
[1733834239633,19.96934,213.01,212.96,0.5569663]
[1733834239831,6.243,213.08,212.96,0.5569663]
[1733834240044,2.84586034,213.01,212.96,0.5569663]
[1733834240353,6.243,213.08,212.96,0.5569663]
[1733834240826,6.243,213.08,212.96,23.8399716]
[1733834241243,6.243,213.08,212.97,23.2830053]
[1733834241550,6.243,213.08,212.96,0.5569663]
[1733834241757,0.12549,213.04,212.96,0.5569663]
[1733834241927,0.25098,213.04,212.96,0.5569663]
[1733834242750,24.027864,213.04,212.96,0.5569663]
[1733834243058,0.12549,213.0,212.96,0.5569663]
[1733834243853,0.25098,213.0,212.96,0.4864663]
[1733834244154,20.25098,212.97,212.96,0.4687663]
[1733834244352,50.270864,212.97,212.96,0.4687663]
[1733834244726,60.270864,212.97,212.96,0.3433663]
[1733834244925,60.270864,212.97,212.92,0.45192308]
[1733834244926,57.972374,212.93,212.92,0.45192308]
[1733834245137,43.902374,212.93,212.92,0.45192308]
[1733834245322,58.93765223,212.93,212.92,0.45192308]
[1733834245959,73.00765223,212.93,212.92,0.45192308]
[1733834246162,79.25065223,212.93,212.92,0.45192308]
[1733834246633,55.18065223,212.93,212.92,0.45192308]
[1733834246843,65.30614223,212.93,212.92,0.45192308]
[1733834247369,55.30614223,212.93,212.92,0.45192308]
[1733834247860,31.27827823,212.93,212.92,0.45192308]
[1733834248768,31.40376823,212.93,212.92,0.45192308]
[1733834249138,55.30614223,212.93,212.92,0.45192308]
[1733834249974,5.03527823,212.93,212.92,0.45192308]
[1733834250268,2.94372454,212.93,212.92,0.45192308]
[1733834251148,26.84609854,212.93,212.92,0.45192308]
[1733834251675,31.88137677,212.93,212.92,0.45192308]
[1733834252374,7.97900277,212.93,212.92,0.45192308]
[1733834252667,2.81823454,212.93,212.92,0.45192308]
[1733834253736,6.0185,213.03,212.92,0.45192308]
[1733834254040,0.12549,213.02,212.92,0.45192308]
[1733834254239,6.0185,213.03,212.92,0.45192308]
[1733834254644,2.76287838,212.95,212.92,0.45192308]
[1733834254870,0.12549,212.94,212.92,0.45192308]
[1733834255166,10.12549,212.93,212.92,0.45192308]
[1733834255377,15.16076823,212.93,212.92,0.45192308]
[1733834255671,21.76426823,212.93,212.92,0.45192308]
[1733834255836,51.68514223,212.93,212.92,0.45192308]
[1733834256034,54.36535729,212.93,212.92,0.45192308]
[1733834256849,68.43535729,212.93,212.92,0.45192308]
[1733834257057,44.36535729,212.93,212.92,0.45192308]
[1733834257368,41.68514223,212.93,212.92,0.45192308]
[1733834258666,65.75514223,212.93,212.92,0.20112308]
[1733834258967,20.0,212.8,212.75,0.5569663]
[1733834259149,20.0,212.78,212.75,0.5569663]
[1733834259667,0.12549,212.77,212.75,0.5569663]
[1733834259972,23.902374,212.77,212.75,0.5569663]
[1733834260641,0.12549,212.76,212.75,0.5569663]
[1733834260840,2.99386587,212.76,212.75,0.5569663]
[1733834261164,26.89623987,212.76,212.75,0.5569663]
[1733834262078,31.9315181,212.76,212.75,0.5569663]
[1733834262381,31.9315181,212.76,212.75,0.4315663]
[1733834262871,31.9315181,212.76,212.6,1.6217]
[1733834262872,20.0,212.71,212.6,1.6217]
[1733834263672,20.0,212.68,212.6,1.6217]
[1733834264056,20.0,212.64,212.59,9.0]
[1733834264258,0.12549,212.63,212.59,9.0]
[1733834264567,0.12549,212.59,212.53,0.5569663]
[1733834264778,20.0,212.6,212.53,0.5569663]
[1733834265143,0.12549,212.59,212.53,0.5569663]
[1733834266741,20.0,212.6,212.53,0.5569663]
[1733834267082,2.78519866,212.65,212.54,23.2830053]
[1733834267247,2.78519866,212.65,212.54,37.99838363]
[1733834267578,2.78519866,212.65,212.53,38.55534993]
[1733834267956,2.78519866,212.65,212.57,1.5712]
[1733834268472,2.86837587,212.76,212.6,37.99838363]
[1733834268664,2.86837587,212.76,212.61,37.99838363]
[1733834268868,2.86837587,212.76,212.58,44.33348363]
[1733834269176,2.86837587,212.76,212.64,37.99838363]
[1733834269356,2.86837587,212.76,212.65,37.99838363]
[1733834269560,2.86837587,212.76,212.67,37.99838363]
[1733834269952,2.86837587,212.76,212.68,37.99838363]
[1733834270170,9.92081051,212.81,212.7,37.99838363]
[1733834270549,9.92081051,212.81,212.76,37.99838363]
[1733834270766,9.92081051,212.81,212.78,37.99838363]
[1733834271175,9.92081051,212.81,212.79,39.56958363]
[1733834271351,9.92081051,212.81,212.79,1.5712]
[1733834272546,0.12549,212.87,212.79,1.5712]
[1733834273047,2.67582265,212.88,212.79,1.5712]
[1733834273445,0.12549,212.87,212.79,1.5712]
[1733834273665,2.67582265,212.88,212.79,1.5712]
[1733834274449,0.12549,212.87,212.79,1.5712]
[1733834275059,5.03527823,212.95,212.86,37.99838363]
[1733834275261,2.87437899,212.98,212.89,37.99838363]
[1733834275662,10.0,213.1,212.91,1.5712]
[1733834275978,18.807935,213.09,212.92,37.99838363]
[1733834276176,6.2444,213.13,212.94,6.3351]
[1733834276177,2.84555399,213.0,212.94,6.3351]
[1733834276484,6.2444,213.13,212.95,37.99838363]
[1733834276654,6.2444,213.13,212.94,6.3351]
[1733834276655,0.12549,213.08,212.94,6.3351]
[1733834277059,2.84386222,213.02,212.94,6.3351]
[1733834278554,23.776884,213.01,212.94,6.3351]
[1733834278973,20.0,212.98,212.94,6.3351]
[1733834279179,2.84386222,213.02,212.94,6.3351]
[1733834279381,2.84386222,213.02,212.94,44.33348363]
[1733834279879,2.84386222,213.02,212.94,6.3351]
[1733834280180,2.84386222,213.02,212.94,44.33348363]
[1733834280357,2.84386222,213.02,212.94,6.3351]
[1733834280559,2.84386222,213.02,212.95,37.99838363]
[1733834280961,2.84386222,213.02,212.94,6.3351]
[1733834280962,10.0,213.12,212.96,37.99838363]
[1733834281164,0.12549,213.11,212.96,37.99838363]
[1733834281476,0.12549,213.11,212.97,37.99838363]
[1733834281649,0.12549,213.03,212.95,37.99838363]
[1733834281849,0.12549,213.03,212.94,6.3351]
[1733834282083,23.902374,213.03,212.94,6.3351]
[1733834282280,23.776884,212.99,212.94,44.33348363]
[1733834282497,20.0,212.96,212.94,6.3351]
[1733834282802,20.0,212.92,212.84,39.55098363]
[1733834283085,20.0,212.92,212.85,37.99838363]
[1733834283250,23.776884,212.91,212.85,37.99838363]
[1733834283448,23.776884,212.91,212.84,1.5526]
[1733834283449,20.0,212.88,212.84,1.5526]
[1733834283685,0.12549,212.9,212.82,6.4946]
[1733834283686,20.0,212.85,212.82,6.4946]
[1733834283861,23.902374,212.84,212.77,1.5526]
[1733834284059,20.0,212.81,212.77,1.5526]
[1733834284362,20.0,212.81,212.79,37.99838363]
[1733834284578,20.0,212.81,212.77,1.5526]
[1733834284755,0.12549,212.84,212.74,6.4946]
[1733834284961,0.12549,212.84,212.71,37.99838363]
[1733834285276,0.12549,212.84,212.72,37.99838363]
[1733834285473,0.12549,212.84,212.7,1.5526]
[1733834285874,23.902374,212.82,212.7,1.5526]
[1733834286188,20.0,212.75,212.7,1.5526]
[1733834286688,23.776884,212.81,212.7,39.55098363]
[1733834286861,20.0,212.78,212.7,39.55098363]
[1733834287263,20.0,212.74,212.7,1.5526]
[1733834287771,20.0,212.74,212.64,37.99838363]
[1733834287983,23.776884,212.73,212.63,39.55098363]
[1733834288151,20.0,212.74,212.64,37.99838363]
[1733834288352,20.0,212.77,212.69,37.99838363]
[1733834288558,2.85992985,212.86,212.7,0.70506597]
[1733834288781,20.0,212.84,212.67,37.99838363]
[1733834288957,20.12549,212.83,212.65,37.99838363]
[1733834289152,0.12549,212.78,212.64,37.99838363]
[1733834289375,0.12549,212.78,212.65,38.70361322]
[1733834289588,0.12549,212.78,212.67,37.99838363]
[1733834289765,0.12549,212.8,212.66,37.99838363]
[1733834289965,20.0,212.73,212.66,37.99838363]
[1733834290162,20.0,212.73,212.63,39.55098363]
[1733834290369,23.776884,212.72,212.63,1.5526]
[1733834290556,20.0,212.69,212.63,1.5526]
[1733834291167,20.0,212.81,212.66,37.99838363]
[1733834291361,0.12549,212.79,212.66,37.99838363]
[1733834291560,0.12549,212.79,212.63,1.5526]
[1733834291783,0.12549,212.77,212.63,1.5526]
[1733834291967,20.0,212.71,212.63,1.5526]
[1733834292157,23.776884,212.7,212.63,1.5526]
[1733834293187,0.12549,212.69,212.63,1.5526]
[1733834293378,23.902374,212.66,212.55,46.08688363]
[1733834293560,20.0,212.63,212.55,8.0885]
[1733834293893,23.902374,212.66,212.55,8.0885]
[1733834293894,20.0,212.59,212.55,8.0885]
[1733834294066,20.0,212.59,212.53,0.5569663]
[1733834294067,23.776884,212.58,212.53,0.5569663]
[1733834294465,20.0,212.59,212.53,0.5569663]
[1733834294667,20.0,212.62,212.56,37.99838363]
[1733834295283,20.0,212.62,212.53,0.5569663]
[1733834295284,20.0,212.62,212.53,38.55534993]
[1733834295477,11.8989981,212.76,212.53,38.55534993]
[1733834295478,23.902374,212.74,212.58,37.99838363]
[1733834295790,20.0,212.71,212.62,37.99838363]
[1733834295991,20.0,212.71,212.53,10.5569663]
[1733834295992,20.0,212.71,212.6,37.99838363]
[1733834296155,20.0,212.71,212.57,0.70527696]
[1733834296156,2.83884328,212.75,212.59,37.99838363]
[1733834296356,2.83884328,212.75,212.57,0.70527696]
[1733834296357,0.12549,212.74,212.58,37.99838363]
[1733834296575,0.12549,212.74,212.59,37.99838363]
[1733834297291,23.902374,212.74,212.59,37.99838363]
[1733834297465,20.0,212.67,212.59,37.99838363]
[1733834297665,20.0,212.67,212.58,37.99838363]
[1733834298079,2.83884328,212.75,212.63,37.99838363]
[1733834298599,2.83884328,212.75,212.66,37.99838363]
[1733834298960,2.83884328,212.75,212.64,6.4277]
[1733834298961,6.0229,212.87,212.69,37.99838363]
[1733834299164,6.0229,212.87,212.67,37.99838363]
[1733834299165,2.78365212,212.79,212.67,37.99838363]
[1733834299393,2.78365212,212.79,212.69,37.99838363]
[1733834299569,6.0229,212.87,212.73,37.99838363]
[1733834299913,6.0229,212.93,212.76,37.99838363]
[1733834300083,2.85706215,212.85,212.77,37.99838363]
[1733834300287,6.0229,212.93,212.74,37.99838363]
[1733834300604,6.0229,212.93,212.78,37.99838363]
[1733834301088,6.0229,212.93,212.79,37.99838363]
[1733834301298,6.0229,213.0,212.83,37.99838363]
[1733834301494,6.0229,213.0,212.84,37.99838363]
[1733834301808,6.2444,213.07,212.88,37.99838363]
[1733834301980,6.2444,213.07,212.89,37.99838363]
[1733834302177,6.2444,213.07,212.86,1.6341]
[1733834302178,6.2444,213.07,212.92,37.99838363]
[1733834302403,6.2444,213.07,212.93,37.99838363]
[1733834302602,2.78144658,213.0,212.93,37.99838363]
[1733834302815,1.9076069,213.11,212.96,37.99838363]
[1733834303020,2.8223502,213.06,212.98,37.99838363]
[1733834303314,10.0,213.2,213.02,37.99838363]
[1733834303513,10.0,213.19,213.02,37.99838363]
[1733834303812,2.87651225,213.1,212.94,44.53368363]
[1733834304118,2.87651225,213.1,212.98,37.99838363]
[1733834304299,2.87651225,213.1,212.99,37.99838363]
[1733834304611,2.87651225,213.1,212.96,37.99838363]
[1733834304978,2.87651225,213.1,212.94,44.53368363]
[1733834305280,2.87651225,213.1,212.94,6.5353]
[1733834305503,2.87651225,213.1,212.88,37.99838363]
[1733834305504,20.0,213.08,212.88,37.99838363]
[1733834305677,20.12549,213.07,212.88,37.99838363]
[1733834305885,20.12549,213.07,212.89,37.99838363]
[1733834306083,20.12549,213.07,212.9,37.99838363]
[1733834306410,20.0,212.99,212.89,37.99838363]
[1733834306777,23.776884,213.09,212.96,37.99838363]
[1733834306987,6.2444,213.22,213.01,37.99838363]
[1733834307209,6.2444,213.22,213.06,37.99838363]
[1733834307505,18.795053,213.21,213.02,0.70393891]
[1733834307717,18.795053,213.21,213.04,37.99838363]
[1733834308085,18.795053,213.21,213.06,37.99838363]
[1733834308289,6.2444,213.22,213.09,37.99838363]
[1733834308516,6.6797663,213.28,213.09,37.99838363]
[1733834308696,6.6797663,213.28,213.12,37.99838363]
[1733834308898,6.6797663,213.28,213.13,37.99838363]
[1733834309093,6.6797663,213.28,213.11,37.99838363]
[1733834309410,2.85395663,213.22,213.13,37.99838363]
[1733834309622,2.85395663,213.22,213.12,37.99838363]
[1733834309789,2.85395663,213.22,213.11,39.55828363]
[1733834310117,2.85395663,213.22,213.11,1.5599]
[1733834310321,2.85395663,213.22,213.06,37.99838363]
[1733834310485,0.12549,213.21,213.07,37.99838363]
[1733834310688,2.85395663,213.22,213.12,37.99838363]
[1733834311221,2.85395663,213.22,213.07,37.99838363]
[1733834311412,0.12549,213.21,213.03,39.55828363]
[1733834311914,0.12549,213.21,213.06,37.99838363]
[1733834311915,23.902374,213.21,213.06,37.99838363]
[1733834312095,23.902374,213.21,213.08,37.99838363]
[1733834312296,6.1228,213.21,213.14,37.99838363]
[1733834312500,6.1228,213.21,213.15,37.99838363]
[1733834312889,6.1228,213.21,213.09,0.70371506]
[1733834312890,6.1228,213.21,213.13,37.99838363]
[1733834313233,2.79780954,213.25,213.16,37.99838363]
[1733834313517,2.79780954,213.25,213.15,37.99838363]
[1733834313725,2.79780954,213.25,213.11,37.99838363]
[1733834313726,0.12549,213.24,213.11,37.99838363]
[1733834314014,0.12549,213.24,213.03,21.5599]
[1733834314015,0.12549,213.24,213.12,37.99838363]
[1733834314194,0.12549,213.24,213.1,37.99838363]
[1733834314397,0.12549,213.2,213.1,37.99838363]
[1733834314718,20.0,213.17,213.08,37.99838363]
[1733834315216,2.79780954,213.25,213.13,37.99838363]
[1733834315409,2.79780954,213.25,213.1,37.99838363]
[1733834315611,2.79780954,213.25,213.13,37.99838363]
[1733834315992,0.12549,213.24,213.13,37.99838363]
[1733834316317,2.79780954,213.25,213.16,37.99838363]
[1733834316626,0.5569663,213.28,213.1,37.99838363]
[1733834316919,0.12549,213.27,213.11,37.99838363]
[1733834317210,2.92778958,213.27,213.1,37.99838363]
[1733834317597,0.12549,213.25,213.1,37.99838363]
[1733834317789,0.12549,213.25,213.14,37.99838363]
[1733834317992,0.12549,213.25,213.12,37.99838363]
[1733834318297,43.776884,213.26,213.13,38.70196767]